[Event "Superbet Blitz Poland 2023"]
[Site "Warsaw"]
[Date "2023.05.24"]
[Round "9"]
[White "Giri, Anish"]
[Black "Shevchenko, Kirill"]
[Result "0-1"]
[ECO "B48"]
[WhiteElo "2768"]
[BlackElo "2684"]
[Annotator "TA"]
[PlyCount "142"]
[EventDate "2023.05.24"]
[EventType "tourn"]
[EventCountry "POL"]
[SourceTitle "playchess.com"]
[Source "ChessBase"]
[SourceQuality "1"]
[TimeControl "300+2"]

{[%evp 11,142,27,43,41,48,39,21,36,31,0,0,0,27,27,27,29,31,15,20,32,26,-37,12,12,83,57,61,70,75,69,68,72,71,66,79,56,105,18,14,19,27,0,0,-13,-9,-9,0,0,0,0,0,0,0,0,0,-62,-17,-87,-79,-266,-82,-84,-79,-89,-102,-102,-76,-264,-259,-593,-522,-395,-73,-1586,-1586,-1564,-1564,-1401,-1401,-847,-847,-847,-847,-783,-762,-29961,-29962,-29961,-29963,-29961,-29962,-29962,-29962,-29963,-29962,-29966,-29963,-29964,-29961,-29961,-29961,-29961,-29962,-29962,-29963,-29963,-29963,-29965,-29958,-29960,0,-29961,-29963,-29963,-29964,-29964,-29965,-29965,-29966,-29967,-29967,-29966,-29968,-29969,-29969,-29968,-29969,-29972,-29970,-29970,-29969,-29959,-29963]} 1. e4 {[%emt 0:00:01]} c5 {[%emt 0:00:01]} 2. Nf3 {[%emt 0:00:01]} Nc6 {[%emt 0:00:01]} 3. d4 {[%emt 0:00:01]} cxd4 {[%emt 0:00:01]} 4. Nxd4 {[%emt 0:00:00]} e6 {[%emt 0:00:04]} 5. Nc3 {[%emt 0:00:03]} Qc7 {[%emt 0:00:01]} 6. Be3 {[%emt 0:00:01]} a6 {[%emt 0:00:01]} 7. Qf3 {[%emt 0:00:02] 7.g4 is a critical line. B48: Sicilian: Taimanov: 5 Nc3 Qc7 6 Be3 a6 without Be2.} h5 {[%emt 0:00:02]} 8. Nxc6 {[%emt 0:00:06]} Qxc6 {[%emt 0:00:02] [#]} 9. a4 $146 {[%emt 0:00:01] The position is equal.} ({Predecessor:} 9. O-O-O b5 10. Bd3 Bb7 11. Qf4 d6 12. e5 d5 13. a4 bxa4 14. Nxa4 Rd8 15. Qd4 {0-1 Reviczki,R (2220)-Palczert,M (2360) HUN-ch U20 Budapest 2023 (7)}) 9... Bb4 {[%emt 0:00:12]} 10. O-O-O {[%emt 0:00:04]} Bxc3 {[%emt 0:00:36]} 11. bxc3 {[%emt 0:00:02]} Qxc3 {[%emt 0:00:03]} 12. Bd4 {[%emt 0:00:43][%mdl 64] Discovered Attack} Qxf3 {[%emt 0:00:06]} 13. gxf3 {[%emt 0:00:01]} f6 {[%emt 0:00:23]} 14. f4 {[%emt 0:00:01][%mdl 1024] White has compensation.} Ne7 {[%emt 0:00:03]} 15. Rg1 {[%emt 0:00:01]} Kf7 {[%emt 0:00:03] Black is weak on the dark squares} 16. Rd3 {[%emt 0:01:09]} (16. e5 $11) 16... h4 {[%emt 0:00:19]} (16... d5 $15) 17. Bc5 $11 {[%emt 0:00:03]} Ng6 {[%emt 0:00:26]} (17... b5 $11) 18. Bd6 {[%emt 0:00:02]} b5 {[%emt 0:00:00]} 19. f5 {[%emt 0:00:48]} (19. a5 {simplifies} Ne7 20. Bxe7 Kxe7 21. Rxg7+ Kf8 22. Rg6) 19... Ne5 {[%emt 0:00:18]} 20. fxe6+ {[%emt 0:00:18]} Kxe6 {[%emt 0:00:21]} 21. Bh3+ {[%emt 0:00:07] A strong pair of Bishops.} Kf7 {[%emt 0:00:01]} 22. Bxe5 {[%emt 0:00:11]} fxe5 {[%emt 0:00:00]} 23. Bxd7 {[%emt 0:00:08]} g6 {[%emt 0:00:38]} (23... Rh6 $14) 24. axb5 {[%emt 0:00:42]} (24. Bc6 $1 $16 {[%cal Rc6a8]} Ra7 25. Rd6 (25. axb5 axb5 26. Kd2 Be6 $16)) 24... axb5 {[%emt 0:00:01]} 25. Kb2 {[%emt 0:00:00] Wards off Ra1} (25. Rf3+ $2 Kg7 26. Bxc8 Ra1+ 27. Kd2 Rxg1 $19) 25... Bb7 {[%emt 0:00:51]} 26. Bxb5 {[%emt 0:00:33] aiming for Rd7+.} Bxe4 {[%emt 0:00:04]} 27. Re3 {[%emt 0:00:17]} Rhb8 {[%emt 0:00:01]} 28. c4 {[%emt 0:00:02] [#]} Bd5 {[%emt 0:00:02][%mdl 64] Deflection} 29. Kc3 {[%emt 0:00:05][%cal Oe3e5]} (29. Rxe5 $2 Bxc4 30. Rgg5 Ra5 $19) 29... Be6 {[%emt 0:00:06]} 30. Rxe5 {[%emt 0:00:03]} Ra3+ {[%emt 0:00:01]} 31. Kb4 {[%emt 0:00:04]} Rh3 {[%emt 0:00:10]} 32. Rge1 {[%emt 0:00:02]} Bf5 {[%emt 0:00:01]} (32... Bg4 {simplifies} 33. f3 Bf5 34. R1e2 Rxf3 35. Re8 Rxe8 36. Bxe8+ Kf6) 33. c5 {[%emt 0:00:04]} (33. Rh1 $11) 33... Rxh2 $15 {[%emt 0:00:08]} 34. c6 {[%emt 0:00:04]} (34. R5e2 $11) 34... Rxf2 $17 {[%emt 0:00:03]} 35. Kc5 $2 {[%emt 0:00:01]} (35. c7 $17 Rb2+ 36. Ka5 Ra2+ 37. Kb4 Rb2+ 38. Ka5) 35... h3 $2 {[%emt 0:00:09]} (35... Kf6 $1 $19 {Hoping for ...Rc2+.} 36. Bc4 h3) 36. c7 {[%emt 0:00:10]} Rc8 {[%emt 0:00:02]} 37. Re7+ {[%emt 0:00:01]} Kf6 {[%emt 0:00:00] ...Rc2+ is the strong threat.} 38. Rh7 {[%emt 0:00:01]} h2 {[%emt 0:00:12] Strongly threatening ...g5.} 39. Ba6 $2 {[%emt 0:00:05]} (39. Rh1 $17 {was forced.}) 39... Rc2+ $19 {[%emt 0:00:04]} 40. Kd6 $2 {[%emt 0:00:03]} (40. Kb6 Ra8 41. Kb7) 40... Ra8 {[%emt 0:00:14]} 41. Bb7 {[%emt 0:00:04]} Ra5 {[%emt 0:00:02]} (41... Ra7 $19 {is more deadly.} 42. Rxh2 Rxh2) 42. Re8 $2 {[%emt 0:00:07][%mdl 8192]} (42. Rf1 $17 Ra4 43. Rxf5+ (43. c8=R $2 Rd4+ 44. Bd5 Rxc8 $19) 43... gxf5 44. Rh6+ Kg5 45. Rxh2 Rd4+ {[%mdl 64] Deflection} 46. Ke5 Rxc7 47. Kxd4) 42... Rd2+ {[%emt 0:00:01]} 43. Kc6 {[%emt 0:00:01] [#]} Bd7+ $1 {[%emt 0:00:06][%mdl 576] Double Attack} 44. Kb6 {[%emt 0:00:02]} Rb5+ {[%emt 0:00:00]} 45. Ka7 {[%emt 0:00:01]} Ra2+ {[%emt 0:00:14]} (45... Bxe8 46. c8=Q (46. c8=R $2 Ra2+ 47. Kb8 Rab2 $19) 46... Ra2+ 47. Kb8 $18) 46. Kb8 {[%emt 0:00:01] [#]} Rab2 $1 {[%emt 0:00:09]} ({Weaker is} 46... Bxe8 47. c8=Q (47. c8=B $2 {perishes.} Bc6 $19) 47... Rab2 48. Qc3+ (48. Qxe8 Rxb7+ {[%mdl 64] Double Attack} 49. Ka8 Rxh7 $11) 48... Kg5 49. Qe3+ Kf6 50. Qf4+ (50. Qxe8 Rxb7+ {[%mdl 64] Double Attack} 51. Ka8 Rxh7 $11) 50... Ke6 51. Qf3 $18) 47. Rf8+ {[%emt 0:00:01]} Kg5 {[%emt 0:00:01]} 48. c8=Q {[%emt 0:00:05]} Bxc8 {[%emt 0:00:02]} 49. Kxc8 {[%emt 0:00:01] [#]} Rxb7 $1 {[%emt 0:00:02][%mdl 576] Promotion} 50. Rxh2 {[%emt 0:00:03] KRR-KRR} Rb8+ {[%emt 0:00:01]} 51. Kc7 {[%emt 0:00:01]} R2b7+ {[%emt 0:00:01]} 52. Kc6 {[%emt 0:00:00]} Rxf8 {[%emt 0:00:02]} 53. Kxb7 {[%emt 0:00:01] KR-KR} Rf6 {[%emt 0:00:06]} 54. Rh1 {[%emt 0:00:03]} Kg4 {[%emt 0:00:09]} 55. Rg1+ {[%emt 0:00:00]} Kh4 {[%emt 0:00:00]} 56. Rh1+ {[%emt 0:00:01]} Kg3 {[%emt 0:00:03]} 57. Rg1+ {[%emt 0:00:01]} Kf2 {[%emt 0:00:01]} 58. Rg5 {[%emt 0:00:01]} Kf3 {[%emt 0:00:01]} 59. Rg1 {[%emt 0:00:01]} Kf4 {[%emt 0:00:04]} 60. Rf1+ {[%emt 0:00:01]} Kg5 $2 {[%emt 0:00:03]} (60... Ke5 {mates} 61. Re1+ Kf5 62. Rf1+ Kg5 63. Re1 Kh4 64. Rh1+ Kg3 65. Rh6 Kf4 66. Kc7 Kf5 67. Rh7 g5 68. Rh5 Kf4 69. Kd8 g4 70. Rh1 Rg6 71. Rf1+ Ke3 72. Re1+ Kf2 73. Ra1 g3 74. Kc8 g2 75. Rb1 g1=Q 76. Rxg1 Rxg1 77. Kc7 Rg6 78. Kd7 Ke3 79. Ke7 Ke4 80. Kf7 Ra6 81. Ke7 Kd5 82. Kf7 Ke5 83. Kg7 Kf5 84. Kf7 Re6 85. Kg7 Re7+ 86. Kf8 Kf6 87. Kg8 Rc7 88. Kh8 Kg6 89. Kg8 Rc8#) 61. Rg1+ $2 {[%emt 0:00:00][%mdl 8192]} (61. Rh1 $11) 61... Kh6 {[%emt 0:00:00] Black mates.} 62. Rh1+ {[%emt 0:00:01] [#]} Kg7 $1 {[%emt 0:00:01]} 63. Rg1 {[%emt 0:00:00]} Rf5 {[%emt 0:00:01]} 64. Kc6 {[%emt 0:00:01]} g5 {[%emt 0:00:01]} 65. Kd6 {[%emt 0:00:01]} Kg6 {[%emt 0:00:01]} 66. Ke6 {[%emt 0:00:01]} Ra5 {[%emt 0:00:02]} 67. Kd6 {[%emt 0:00:05]} Kh5 {[%emt 0:00:04]} 68. Rh1+ {[%emt 0:00:01]} Kg4 {[%emt 0:00:01]} 69. Rg1+ {[%emt 0:00:00]} Kf4 {[%emt 0:00:02]} 70. Rf1+ {[%emt 0:00:01]} Ke3 {[%emt 0:00:01]} 71. Rg1 {[%emt 0:00:01]} Kf2 {[%emt 0:00:00] Excellently played by Shevchenko!   Weighted Error Value: White=0.48/Black=0.26 (precise)} 0-1

[Event "Superbet Blitz Poland 2023"]
[Site "Warsaw"]
[Date "2023.05.24"]
[Round "9"]
[White "So, Wesley"]
[Black "Deac, Bogdan-Daniel"]
[Result "1-0"]
[ECO "E53"]
[WhiteElo "2760"]
[BlackElo "2700"]
[Annotator "TA"]
[PlyCount "61"]
[EventDate "2023.05.24"]
[EventType "tourn"]
[EventCountry "POL"]
[SourceTitle "playchess.com"]
[Source "ChessBase"]
[SourceQuality "1"]
[TimeControl "300+2"]

{[%evp 18,61,6,14,11,0,0,0,0,0,0,0,12,6,95,96,101,100,97,101,133,105,107,110,111,101,114,93,90,102,98,52,158,153,502,498,543,511,506,434,29994,29995,29997,29998,29998,29999]} 1. d4 {[%emt 0:00:02]} Nf6 {[%emt 0:00:01]} 2. c4 {[%emt 0:00:02]} e6 {[%emt 0:00:01]} 3. Nc3 {[%emt 0:00:01]} Bb4 {[%emt 0:00:01]} 4. e3 {[%emt 0:00:01]} O-O {[%emt 0:00:03]} 5. Bd3 {[%emt 0:00:01]} d5 {[%emt 0:00:01]} 6. a3 {[%emt 0:00:04]} Bxc3+ {[%emt 0:00:02]} 7. bxc3 {[%emt 0:00:01]} dxc4 {[%emt 0:00:02]} 8. Bxc4 {[%emt 0:00:01]} c5 {[%emt 0:00:01]} 9. Nf3 {[%emt 0:00:02]} Qc7 {[%emt 0:00:01]} 10. Be2 {[%emt 0:00:02]} b6 {[%emt 0:00:01] E53: Nimzo-Indian: Rubinstein: Main Line (4...0-0 5 Nf3 d5 6 Bd3 c5 7 0-0).} 11. Bb2 $1 {[%emt 0:00:01][%mdl 4] is recently more successful than 11.0-0.} Bb7 {[%emt 0:00:05]} 12. O-O {[%emt 0:00:03]} Nc6 {[%emt 0:00:01] The position is equal.} 13. Rc1 {[%emt 0:00:07]} Rfd8 {[%emt 0:00:03]} 14. Re1 {[%emt 0:00:02]} Rac8 {[%emt 0:00:10] [#]} 15. Bd3 $146 {[%emt 0:00:05]} ({Predecessor:} 15. Nd2 Ne7 16. Bf1 Ng6 17. Qe2 Qd7 18. h3 e5 19. Red1 Bc6 20. dxe5 Nxe5 21. Nc4 {½-½ Agaltsov,I (2417)-Furashev,V (2374) RUS VC-4 final email 2021}) 15... e5 {[%emt 0:00:26] [#]} (15... h6 $11) 16. e4 $1 $16 {[%emt 0:00:04] White is more active.} Ne8 {[%emt 0:02:32]} 17. d5 {[%emt 0:00:19]} Ne7 {[%emt 0:00:01]} 18. c4 {[%emt 0:00:02]} f6 {[%emt 0:00:01]} 19. g3 {[%emt 0:00:11]} ({Much less strong is} 19. Qa4 $6 Ng6 $14) 19... Nd6 {[%emt 0:00:26]} 20. Nxe5 {[%emt 0:00:15]} fxe5 {[%emt 0:00:01]} 21. Bxe5 {[%emt 0:00:01]} Ng6 {[%emt 0:00:01]} 22. Bb2 {[%emt 0:00:10] A strong pair of Bishops.} b5 {[%emt 0:00:46]} 23. cxb5 {[%emt 0:00:04]} c4 {[%emt 0:00:22]} 24. e5 {[%emt 0:00:29]} (24. a4 $16) 24... Qb6 {[%emt 0:00:23]} ({Better is} 24... Qf7 $1 $14 25. Bxg6 hxg6) 25. Bxg6 {[%emt 0:00:17]} c3 $2 {[%emt 0:00:13] Loses the game.} (25... hxg6 $16 {is tougher.} 26. exd6 Qxd6) 26. Rxc3 $18 {[%emt 0:00:39]} ({Not} 26. Bxc3 Nxb5 $16) 26... Rxc3 {[%emt 0:00:02]} 27. exd6 {[%emt 0:00:02]} hxg6 {[%emt 0:00:05]} 28. Bxc3 {[%emt 0:00:01] [#] Intending Re7 and mate.} Qxb5 {[%emt 0:00:02]} (28... Qxd6 $18 29. Qd4 Qf6) 29. Qd4 {[%emt 0:00:15][%csl Gc3,LRa7,LRg7][%cal Rd4g7] White mates.} Rd7 {[%emt 0:00:01]} 30. Re8+ {[%emt 0:00:04]} Kf7 {[%emt 0:00:02]} 31. Qxg7+ {[%emt 0:00:02] Excellently played by So!   Weighted Error Value: White=0.06 (flawless) /Black=0.55} 1-0

[Event "Superbet Blitz Poland 2023"]
[Site "Warsaw"]
[Date "2023.05.24"]
[Round "9"]
[White "Aronian, Levon"]
[Black "Rapport, Richard"]
[Result "0-1"]
[ECO "C02"]
[WhiteElo "2745"]
[BlackElo "2745"]
[Annotator "TA"]
[PlyCount "80"]
[EventDate "2023.05.24"]
[EventType "tourn"]
[EventCountry "POL"]
[SourceTitle "playchess.com"]
[Source "ChessBase"]
[SourceQuality "1"]
[TimeControl "300+2"]

{[%evp 14,80,24,20,44,31,37,29,51,48,43,33,39,35,69,77,88,55,77,52,102,100,118,111,106,117,72,28,16,16,143,129,270,264,250,180,178,108,177,147,169,167,177,14,91,85,254,167,145,148,116,0,0,0,0,0,25,0,10,0,2,0,22,29,233,-641,-607,-29990,-29991]} 1. e4 {[%emt 0:00:01]} e6 {[%emt 0:00:03]} 2. d4 {[%emt 0:00:01]} d5 {[%emt 0:00:01]} 3. e5 {[%emt 0:00:01]} c5 {[%emt 0:00:01]} 4. c3 {[%emt 0:00:01]} Bd7 {[%emt 0:00:01]} 5. Nf3 {[%emt 0:00:01]} Nc6 {[%emt 0:00:00]} 6. Be2 {[%emt 0:00:03]} Nge7 {[%emt 0:00:02]} 7. O-O {[%emt 0:00:05]} Ng6 {[%emt 0:00:01]} 8. Be3 {[%emt 0:00:04]} Qc7 $5 {[%emt 0:00:09][%mdl 4] Exploring less charted territory. C02: French: Advance Variation.} 9. Nbd2 {[%emt 0:00:09]} Be7 {[%emt 0:00:06] [#]} 10. g3 $146 {[%emt 0:00:10]} ({Predecessor:} 10. Rc1 O-O 11. Bd3 Rac8 12. h4 f5 13. Bg5 Bxg5 14. Nxg5 h6 15. Ngf3 Qd8 16. g3 cxd4 17. cxd4 {½-½ Chiappero,C (1521)-Vazquez,F (1740) South America-ch U12 12th 2015 (4)}) 10... cxd4 {[%emt 0:00:18] White has an edge.} 11. cxd4 {[%emt 0:00:01]} f6 {[%emt 0:00:02]} 12. exf6 {[%emt 0:00:04]} gxf6 {[%emt 0:00:04]} 13. Rc1 {[%emt 0:00:06]} O-O {[%emt 0:00:25]} 14. a3 {[%emt 0:00:04]} Kh8 {[%emt 0:00:08]} 15. b4 {[%emt 0:00:04] b5 is the strong threat.} a6 {[%emt 0:00:01]} 16. Nb3 {[%emt 0:00:02]} Rad8 {[%emt 0:00:18]} ({Black should try} 16... b6 $14) 17. Re1 $16 {[%emt 0:00:23]} Qd6 {[%emt 0:00:32]} 18. Nc5 {[%emt 0:02:27]} Bc8 {[%emt 0:00:01]} 19. Bf1 $1 {[%emt 0:00:00]} e5 {[%emt 0:00:03]} 20. dxe5 {[%emt 0:00:01]} (20. h4 $5 {[%cal Rh4h5]}) 20... fxe5 {[%emt 0:00:03]} 21. Ng5 {[%emt 0:00:01] Threatening Bg2.} Nd4 {[%emt 0:00:34]} 22. Bg2 $1 {[%emt 0:00:47]} Rf5 {[%emt 0:00:21]} (22... Bf6 $16) 23. h4 $1 $18 {[%emt 0:00:11][%cal Bh2h4,Bh4g5][%mdl 32]} Bxg5 {[%emt 0:00:10]} 24. hxg5 {[%emt 0:00:11]} Nc6 {[%emt 0:00:09]} 25. Rc2 {[%emt 0:00:21]} (25. a4 $18) 25... Nge7 {[%emt 0:00:14]} (25... Rf7 $16) 26. f4 {[%emt 0:00:10]} Qg6 {[%emt 0:00:20]} 27. Nd3 {[%emt 0:00:08]} e4 {[%emt 0:00:07] [#]} 28. Ne5 {[%emt 0:00:12]} Rxe5 {[%emt 0:00:01]} (28... Nxe5 $11 {keeps the balance.} 29. fxe5 Re8) 29. fxe5 $16 {[%emt 0:00:02]} d4 $2 {[%emt 0:00:02]} (29... Be6 $16) 30. Bf4 {[%emt 0:00:04]} e3 {[%emt 0:00:05]} 31. Bxc6 $1 {[%emt 0:00:03]} Nxc6 {[%emt 0:00:05] [#]} 32. Rxc6 {[%emt 0:00:01]} Qxc6 $11 {[%emt 0:00:06]} 33. Rxe3 {[%emt 0:00:01]} Bh3 {[%emt 0:00:05][%csl Gh3][%cal Rc6g2,Bc8h3,Bh3f5,Bf5e4][%mdl 32]} 34. Qd2 {[%emt 0:00:01] Repels Qg2+} Qe6 {[%emt 0:00:33]} 35. Re1 {[%emt 0:00:05][%cal Be3e1,Be1c1,Bc1c7][%mdl 32]} (35. Rd3 {seems wilder.} Qd5 36. e6 Bxe6 37. Be3) 35... Bf5 {[%emt 0:00:02]} 36. Rc1 {[%emt 0:00:04]} Be4 {[%emt 0:00:05]} 37. Rc7 {[%emt 0:00:01]} Qh3 {[%emt 0:00:11]} 38. Qh2 {[%emt 0:00:02] Wards off Qh1+} Qg4 {[%emt 0:00:01]} (38... Qxh2+ $11 {and Black stays safe.} 39. Kxh2 Kg8) 39. Qd2 $4 {[%emt 0:00:02][%mdl 8192]} (39. Qh6 $18 Qd1+ 40. Kf2 Qf3+ 41. Ke1 Qh1+ 42. Qxh1 Bxh1 43. g6 hxg6 44. e6) 39... Qf3 $19 {[%emt 0:00:02] ( -> ...Qh1+)} 40. e6 {[%emt 0:00:03] Be5+ would be deadly.} Qh1+ {[%emt 0:00:03] Quite a comeback for Black.   Weighted Error Value: White=0.46/Black=0.39} ({Don't do} 40... Qxa3 41. Qxd4+ {[%mdl 64] Decoy, Back Rank} Rxd4 42. Be5+ Kg8 43. Rc8+) 0-1

[Event "Superbet Blitz Poland 2023"]
[Site "Warsaw"]
[Date "2023.05.24"]
[Round "9"]
[White "Vachier-Lagrave, Maxime"]
[Black "Wojtaszek, Radoslaw"]
[Result "1-0"]
[ECO "B90"]
[WhiteElo "2742"]
[BlackElo "2670"]
[Annotator "TA"]
[PlyCount "75"]
[EventDate "2023.05.24"]
[EventType "tourn"]
[EventCountry "POL"]
[SourceTitle "playchess.com"]
[Source "ChessBase"]
[SourceQuality "1"]
[TimeControl "300+2"]

{[%evp 13,75,15,15,9,29,26,27,22,34,6,14,6,41,35,71,67,82,56,184,147,147,133,189,180,223,64,56,71,70,60,147,155,145,147,139,148,145,139,126,97,195,199,216,220,249,201,223,213,290,250,299,281,301,280,584,573,515,530,947,947,1171,856,893,826]} 1. e4 {[%emt 0:00:01]} c5 {[%emt 0:00:01]} 2. Nf3 {[%emt 0:00:01]} d6 {[%emt 0:00:01]} 3. d4 {[%emt 0:00:01]} cxd4 {[%emt 0:00:01]} 4. Nxd4 {[%emt 0:00:01]} Nf6 {[%emt 0:00:01]} 5. Nc3 {[%emt 0:00:01]} a6 {[%emt 0:00:01]} 6. Bd3 {[%emt 0:00:02]} e5 {[%emt 0:00:01]} 7. Nde2 {[%emt 0:00:04]} Be6 {[%emt 0:00:03]} 8. f4 {[%emt 0:00:16] B90: Sicilian Najdorf: Unusual White 6th moves, 6 Be3 Ng4 and 6 Be3 e5.} exf4 {[%emt 0:00:03]} 9. Nxf4 {[%emt 0:00:01]} Nc6 {[%emt 0:00:02]} 10. Nxe6 {[%emt 0:00:05] White has an edge.} fxe6 {[%emt 0:00:02] [#]} 11. Bc4 $146 {[%emt 0:00:02]} (11. Qf3 $5 {[%cal Rf3h3]}) ({Predecessor:} 11. Qe2 Ne5 12. Bc4 Qe7 13. Bf4 g6 14. Bxe5 dxe5 15. Qe3 Rc8 16. Bb3 Bg7 17. Qh3 {½-½ Watson,W (2540)-Chandler,M (2550) Bundesliga 9697 1996 [4]}) 11... Qd7 {[%emt 0:00:05]} 12. a3 {[%emt 0:00:01]} Ne5 {[%emt 0:00:20]} 13. Bb3 {[%emt 0:00:03]} Be7 {[%emt 0:00:02]} 14. Bf4 {[%emt 0:00:09]} Rc8 {[%emt 0:01:10]} 15. Qe2 {[%emt 0:00:02] Wards off Nc4} Kf7 {[%emt 0:01:09]} ({Black should play} 15... Nfg4 $14) 16. O-O {[%emt 0:00:49]} Rhe8 {[%emt 0:00:19] [#]} 17. Rad1 $1 {[%emt 0:00:03]} Qc6 {[%emt 0:00:13]} (17... Rc5 $16 {is a better defense.} 18. Be3 Rc6) 18. Kh1 $18 {[%emt 0:00:02]} Nc4 {[%emt 0:00:22] [#]} 19. e5 $2 {[%emt 0:00:08]} (19. Rd4 $1 $18 {[%cal Rd4c4]} b5 20. Bxc4 (20. e5 dxe5 21. Rxc4 bxc4 $16) 20... bxc4 21. Bxd6 (21. e5 dxe5 22. Bxe5 Kg8 $16)) 19... dxe5 $14 {[%emt 0:00:04]} 20. Bxe5 {[%emt 0:00:01] This pair of bishops is nice.} Kg8 {[%emt 0:00:10]} 21. Rd4 {[%emt 0:00:17]} b5 {[%emt 0:00:17]} ({Black should try} 21... Nxe5 $14 22. Qxe5 Kh8) 22. Bxc4 $16 {[%emt 0:00:06]} bxc4 {[%emt 0:00:00]} 23. Ne4 $36 {[%emt 0:00:06][%mdl 2048] White is in control. White is more active.} Nxe4 {[%emt 0:00:09]} 24. Rxe4 {[%emt 0:00:02]} Rf8 {[%emt 0:00:06]} 25. Rxf8+ {[%emt 0:00:19]} Bxf8 {[%emt 0:00:03]} 26. Bc3 {[%emt 0:00:06]} Qd5 {[%emt 0:00:20]} (26... Rd8 $16 {keeps fighting.}) 27. Re5 $18 {[%emt 0:00:21]} Qd7 {[%emt 0:00:07]} 28. Rxe6 {[%emt 0:00:02][%cal Be5e6,Be6c6,Bc6c8,Bc8f8,Bf8f2][%mdl 32]} Qf7 {[%emt 0:00:11]} 29. h3 {[%emt 0:00:07]} Rd8 {[%emt 0:00:06]} 30. Rc6 {[%emt 0:00:19]} ({Not} 30. Qxc4 Rd1+ 31. Kh2 Bd6+ 32. Rxd6 Qxc4 $11) 30... Rd5 {[%emt 0:00:20]} 31. Qxc4 {[%emt 0:00:23]} Rd1+ {[%emt 0:00:04]} 32. Kh2 {[%emt 0:00:01]} Bd6+ {[%emt 0:00:01]} 33. g3 {[%emt 0:00:01] Rc8+ is the strong threat.} Rd5 $2 {[%emt 0:00:01]} (33... Qxc4 34. Rxc4 Rc1) 34. Rc8+ {[%emt 0:00:04] White is clearly winning.} (34. Qxa6 Qf2+ 35. Kh1 Rd1+) 34... Bf8 {[%emt 0:00:01]} 35. Kg2 {[%emt 0:00:21][%cal Oc3b4] Repels Qf2+. aiming for Bb4!} (35. Qxa6 {gets mated.} Qf2+ 36. Kh1 Rd1+) 35... h5 {[%emt 0:00:05]} 36. Bb4 {[%emt 0:00:40]} Qe6 {[%emt 0:00:06]} 37. Rxf8+ {[%emt 0:00:03]} Kh7 {[%emt 0:00:01]} 38. Rf2 {[%emt 0:00:02] Weighted Error Value: White=0.16 (very precise) /Black=0.42} 1-0